fUSD/lending_fUSD_20250320
["ID","MTS","AMOUNT","RATE_DAILY","PERIOD"]
[356460788,1742483488285,-500.0,0.0005,120]
[356460789,1742483488295,-1000000.0,0.0005,120]
[356460790,1742483488305,-799.0,0.0005,120]
[356460791,1742483488314,-723.41,0.0005,120]
[356460792,1742483488324,-1000000.0,0.0005,120]
[356460793,1742483488334,-198.0,0.0005,120]
[356460794,1742483488344,-994786.3,0.0005,120]
[356460795,1742483488353,-935.75326943,0.0005,30]
[356460796,1742483488362,-487.68756579,0.0005,30]
[356460797,1742483488371,-2931.999999,0.0005,120]
[356460798,1742483488380,-200.0,0.0005,120]
[356460799,1742483488390,-430.07,0.00050036,2]
[356460800,1742483488399,-1215.91004192,0.00050136,2]
[356460801,1742483488408,-704.97207716,0.00050136,120]
[356460802,1742483488418,-1059.0,0.00050136,120]
[356460803,1742483488428,-375.70117547,0.00050136,120]
[356460804,1742483488437,-281.07,0.00050136,7]
[356460805,1742483488446,-704.12210638,0.00050136,120]
[356460806,1742483488455,-1471.85625939,0.00050136,120]
[356460807,1742483488465,-1183.82841616,0.00050136,120]
[356460808,1742483488475,-731.66808386,0.00050136,2]
[356460809,1742483488484,-744.35188625,0.00050136,120]
[356460810,1742483488493,-230.63163723,0.00050136,120]
[356460811,1742483488502,-49576.47818803,0.00050136,120]
[356460812,1742483488512,-541.82,0.00050136,120]
[356460813,1742483488522,-3443.34,0.00050234,120]
[356460814,1742483488532,-1000000.0,0.0005025,120]
[356460815,1742483488543,-152.0,0.00050262,27]
[356460816,1742483488553,-500.0,0.0005041,120]
[356460817,1742483488562,-1000000.0,0.000505,120]
[356460818,1742483488571,-200.0,0.000505,120]
[356460819,1742483488581,-296.51,0.00050684,120]
[356460820,1742483488593,-1000000.0,0.0005075,120]
[356460821,1742483488603,-299.44342,0.000509,120]
[356460822,1742483488612,-152.0,0.00050905,28]
[356460823,1742483488623,-30000.0,0.0005093,120]
[356460824,1742483488632,-500.0,0.00050958,120]
[356460825,1742483488642,-1000000.0,0.00051,120]
[356460826,1742483488651,-1000000.0,0.00051,120]
[356460827,1742483488661,-1016.39,0.00051,14]
[356460828,1742483488671,-1000.0,0.00051,2]
[356460829,1742483488681,-200.0,0.00051,120]
[356460830,1742483488690,-105819.77227962,0.00051,30]
[356460831,1742483488700,-30000.0,0.0005111,120]
[356460832,1742483488709,-2250.0,0.000512,2]
[356460833,1742483488718,-1000000.0,0.0005125,120]
[356460834,1742483488728,-30000.0,0.0005133,120]
[356460835,1742483488737,-239.45460296,0.000514,120]
[356460836,1742483488748,-45000.0,0.000514,120]
[356460837,1742483488758,-482.36830384,0.000514,120]
[356460838,1742483488769,-581.71,0.00051497,2]
[356460839,1742483488778,-200.0,0.000515,120]
[356460840,1742483488787,-504.38207641,0.00051506,120]
[356460841,1742483488797,-152.0,0.00051548,29]
[356460842,1742483488807,-697.17991086,0.00051645,120]
[356460843,1742483488817,-950.39603878,0.00051648,120]
[356460844,1742483488826,-281.08671457,0.00051655,120]
[356460845,1742483488835,-263.943849,0.00051661,120]
[356460846,1742483488845,-213.01,0.00051663,120]
[356460847,1742483488854,-210.63722208,0.00051665,120]
[356460848,1742483488863,-223.90055863,0.00051668,120]
[356460849,1742483488873,-1707.24526954,0.00051668,120]
[356460850,1742483488882,-1301.34686051,0.00051668,120]
[356460851,1742483488891,-281.08671457,0.00051687,120]
[356460852,1742483488900,-210.63722208,0.00051699,120]
[356460853,1742483488909,-697.17991086,0.000517,120]
[356460854,1742483488918,-950.39603878,0.00051701,120]
[356460855,1742483488927,-712.59875,0.00051709,120]
[356460856,1742483488937,-1301.34686051,0.00051716,120]
[356460857,1742483488947,-263.943849,0.00051721,120]
[356460858,1742483488956,-210.63722208,0.00051723,120]
[356460859,1742483488965,-1074.4180077,0.00051729,120]
[356460860,1742483488973,-1707.24526954,0.00051737,120]
[356460861,1742483488981,-352.03013795,0.00051738,120]
[356460862,1742483488990,-263.943849,0.00051744,120]
[356460863,1742483488998,-352.03013795,0.00051746,120]
[356460864,1742483489006,-213.01,0.00051747,120]
[356460865,1742483489016,-6773.97707088,0.00051755,120]
[356460866,1742483489025,-210.63722208,0.0005176,120]
[356460867,1742483489035,-6773.97707088,0.00051761,120]
[356460868,1742483489045,-352.03013795,0.00051772,120]
[356460869,1742483489054,-281.08671457,0.00051779,120]
[356460870,1742483489063,-1074.4180077,0.00051801,120]
[356460871,1742483489073,-1301.34686051,0.00051804,120]
[356460872,1742483489082,-891.94349125,0.00051808,120]
[356460873,1742483489091,-950.39603878,0.00051815,120]
[356460874,1742483489101,-281.08671457,0.00051819,120]
[356460875,1742483489110,-213.01,0.00051826,120]
[356460876,1742483489119,-950.39603878,0.00051834,120]
[356460877,1742483489129,-223.90055863,0.00051846,120]
[356460878,1742483489138,-1301.34686051,0.00051855,120]
[356460879,1742483489148,-1707.24526954,0.00051856,120]
[356460880,1742483489157,-712.59875,0.00051868,120]
[356460881,1742483489166,-697.17991086,0.00051872,120]
[356460882,1742483489176,-1074.4180077,0.00051881,120]
[356460883,1742483489185,-352.03013795,0.00051882,120]
[356460884,1742483489195,-891.94349125,0.00051884,120]
[356460885,1742483489204,-1707.24526954,0.00051898,120]
[356460886,1742483489213,-263.943849,0.00051908,120]
[356460887,1742483489224,-6773.97707088,0.00051921,120]
[356460888,1742483489233,-697.17991086,0.00051941,120]
[356460889,1742483489243,-213.01,0.00051941,120]
[356460890,1742483489253,-223.90055863,0.00051945,120]
[356460891,1742483489263,-891.94349125,0.00051949,120]
[356460892,1742483489272,-200.0,0.00051959,120]
[356460893,1742483489282,-200.0,0.0005196,120]
[356460894,1742483489292,-1074.4180077,0.00051969,120]
[356460895,1742483489302,-712.59875,0.0005197,120]
[356460896,1742483489311,-6773.97707088,0.00051973,120]
[356460897,1742483489320,-223.90055863,0.00051977,120]
[356460898,1742483489330,-891.94349125,0.00051997,120]
[356460899,1742483489339,-712.59875,0.00051998,120]
[356460900,1742483489348,-1000.0,0.00051999,120]
[356460901,1742483489358,-1249.62,0.00051999,2]
[356460902,1742483489367,-1000000.0,0.00052,120]
[356460903,1742483489376,-150.0,0.00052,10]
[356460904,1742483489386,-180.23421223,0.00052,120]
[356460905,1742483489395,-326.53630133,0.00052,120]
[356460906,1742483489405,-500.0,0.00052,120]
[356460907,1742483489414,-198.0,0.00052,120]
[356460908,1742483489423,-200.0,0.00052,120]
[356460909,1742483489432,-500.0,0.00052054,120]
[356460910,1742483489442,-296.51,0.00052054,120]
[356460911,1742483489451,-299.44342,0.000521,120]
[356460912,1742483489548,-152.0,0.00052191,30]
[356460913,1742483489568,-2000.0,0.0005245,35]
[356460914,1742483489578,-150.0,0.000525,120]
[356460915,1742483489591,-500.0,0.00052602,120]
[356460916,1742483489600,-152.0,0.00052834,31]
[356460917,1742483489610,-50000.0,0.0005287,120]
[356460918,1742483489619,-1000.0,0.00052999,120]
[356460919,1742483489629,-573.44374085,0.00053,2]
[356460920,1742483489639,-550.0,0.00053,120]
[356460921,1742483489648,-150.0,0.00053,10]
[356460922,1742483489659,-447.76992468,0.00053,120]
[356460923,1742483489669,-50000.0,0.00053,120]
[356460924,1742483489679,-1000000.0,0.00053,120]
[356460925,1742483489688,-1050.0,0.00053,2]
[356460926,1742483489697,-500.0,0.0005315,120]
[356460927,1742483489706,-299.4435,0.000533,120]
[356460928,1742483489715,-444.511037,0.0005331,2]
[356460929,1742483489725,-50000.0,0.0005333,120]
[356460930,1742483489734,-296.51,0.00053424,120]
[356460931,1742483489743,-152.0,0.00053477,32]
[356460932,1742483489753,-500.0,0.00053698,120]
[356460933,1742483489762,-150.0,0.00054,30]
[356460934,1742483489772,-500.0,0.00054,120]
[356460935,1742483489782,-5000.0,0.00054,120]
[356460936,1742483489792,-150.0,0.00054,10]
[356460937,1742483489802,-447.76992468,0.00054,120]
[356460938,1742483489812,-198.0,0.00054,120]
[356460939,1742483489821,-2250.0,0.00054,2]
[356460940,1742483489831,-152.0,0.00054119,33]
[356460941,1742483489840,-209.999999,0.000542,4]
[356460942,1742483489850,-322.17363451,0.00054246,120]
[356460943,1742483489859,-52803.02,0.0005435,120]
[356460944,1742483489869,-152.0,0.00054762,34]
[356460945,1742483489878,-1000.0,0.00054794,120]
[356460946,1742483489888,-1000.0,0.00054794,2]
[356460947,1742483489897,-1000.0,0.00054794,2]
[356460948,1742483489906,-1000.0,0.00054794,2]
[356460949,1742483489916,-1000.0,0.00054794,2]
[356460950,1742483489925,-1000.0,0.00054794,2]
[356460951,1742483489934,-1000.0,0.00054794,2]
[356460952,1742483489944,-1000.0,0.00054794,2]
[356460953,1742483489953,-1000.0,0.00054794,2]
[356460954,1742483489963,-1071.68597426,0.00054794,2]
[356460955,1742483489972,-1032.09266867,0.00054795,34]
[356460956,1742483489981,-900.0,0.00054795,35]
[356460957,1742483489990,-6137.64584257,0.000549,120]
[356460958,1742483489999,-16552.04929109,0.000549,30]
[356460959,1742483490009,-6985.76143438,0.00054989,120]
[356460960,1742483490019,-6985.76143438,0.00054989,120]
[356460961,1742483490029,-2164.11075949,0.00055,120]
[356460962,1742483490040,-210.13449935,0.00055,120]
[356460963,1742483490049,-12576.31905145,0.00055,5]
[356460964,1742483490059,-83590.0,0.00055,15]
[356460965,1742483490069,-658.0,0.00055,120]
[356460966,1742483490079,-500.0,0.00055,30]
[356460967,1742483490089,-150.0,0.00055,10]
[356460968,1742483490098,-1000.0,0.00055,10]
[356460969,1742483490108,-390.0,0.00055,120]
[356460970,1742483490118,-447.76992468,0.00055,120]
[356460971,1742483490128,-150.0,0.00055,120]
[356460972,1742483490137,-531.54646457,0.00055,120]
[356460973,1742483490147,-5000.0,0.00055,120]
[356460974,1742483490157,-30000.0,0.00055,90]
[356460975,1742483490166,-1100.0,0.00055,2]
[356460976,1742483490176,-258.956045,0.00055,100]
[356460977,1742483490186,-152.0,0.00055405,35]
[356460978,1742483490196,-229.20479441,0.00055405,5]
[356460979,1742483490206,-5000.0,0.0005555,35]
[356460980,1742483490215,-430.07,0.00055833,120]
[356460981,1742483490225,-450.0,0.00056,120]
[356460982,1742483490235,-500.0,0.00056,120]
[356460983,1742483490245,-580.0,0.00056,14]
[356460984,1742483490254,-150.0,0.00056,10]
[356460985,1742483490264,-531.54646457,0.00056,120]
[356460986,1742483490274,-2695.31065137,0.00056,120]
[356460987,1742483490284,-198.0,0.00056,120]
[356460988,1742483490297,-3443.34,0.00056234,120]
[356460989,1742483490307,-5000.0,0.0005687,30]
[356460990,1742483490317,-500.0,0.00057,120]
[356460991,1742483490327,-42000.0,0.00057,120]
[356460992,1742483490337,-150.0,0.00057,10]
[356460993,1742483490347,-279.17474801,0.00057,120]
[356460994,1742483490356,-1016.39,0.00057,60]
[356460995,1742483490366,-1150.0,0.00057,2]
[356460996,1742483490376,-150.0,0.000575,120]
[356460997,1742483490385,-500.45,0.00057534,120]
[356460998,1742483490395,-150.0,0.0005764,30]
[356460999,1742483490405,-249.33917065,0.00057835,120]
[356461000,1742483490415,-500.0,0.00058,120]
[356461001,1742483490424,-183495.57156614,0.00058,120]
[356461002,1742483490434,-470.96,0.00058,120]
[356461003,1742483490443,-5000.0,0.00058,120]
[356461004,1742483490453,-150.0,0.00058,10]
[356461005,1742483490463,-198.0,0.00058,120]
[356461006,1742483490473,-22010.88090225,0.00058073,120]
[356461007,1742483490482,-835.89281334,0.00058073,120]
[356461008,1742483490492,-5000.0,0.0005885,120]
[356461009,1742483490501,-5316.21,0.00059,120]
[356461010,1742483490511,-500.0,0.00059,120]
[356461011,1742483490521,-1200.0,0.00059,2]
[356461012,1742483490531,-570.86375551,0.0005909,2]
[356461013,1742483490542,-817.52219658,0.000598,120]
[356461014,1742483490552,-5000.0,0.0005986,30]
[356461015,1742483490562,-64460.82623991,0.0005989,120]
[356461016,1742483490572,-508.17265267,0.00059893,120]
[356461017,1742483490582,-5585.52415396,0.000599,120]
[356461018,1742483490596,-1000.0,0.00059999,120]
[356461019,1742483490605,-494.54225375,0.0006,120]
[356461020,1742483490616,-311.15645877,0.0006,120]
[356461021,1742483490625,-1135.18693759,0.0006,30]
[356461022,1742483490637,-150.0,0.0006,30]
[356461023,1742483490647,-350.0,0.0006,120]
[356461024,1742483490656,-500.0,0.0006,120]
[356461025,1742483490666,-2000.0,0.0006,100]
[356461026,1742483490676,-486759.853487,0.0006,120]
[356461027,1742483490686,-10677.68,0.0006,60]
[356461028,1742483490695,-1553.4853766,0.0006,2]
[356461029,1742483490705,-17192.0,0.0006,120]
[356461030,1742483490714,-1000.0,0.0006,120]
[356461031,1742483490724,-1000.0,0.0006,120]
[356461032,1742483490733,-1000.0,0.0006,120]
[356461033,1742483490743,-1000.0,0.0006,120]
[356461034,1742483490753,-648.0,0.0006,120]
[356461035,1742483490762,-10000.0,0.0006,120]
[356461036,1742483490772,-341.93686902,0.0006,120]
[356461037,1742483490782,-1000.0,0.0006,120]
[356461038,1742483490791,-6113.64260611,0.0006,120]
[356461039,1742483490801,-5000.0,0.0006,120]
[356461040,1742483490810,-264.59698007,0.0006,120]
[356461041,1742483490819,-13042.86356594,0.0006,120]
[356461042,1742483490829,-1694.46705232,0.0006,120]
[356461043,1742483490839,-28209.25882352,0.0006,120]
[356461044,1742483490848,-3362.64901752,0.0006,120]
[356461045,1742483490858,-194.0,0.0006,120]
[356461046,1742483490868,-1340.00453158,0.0006,91]
[356461047,1742483490877,-3077.13,0.00060274,120]
[356461048,1742483490886,-900.0,0.00060274,37]
[356461049,1742483490896,-168.81111111,0.00060411,120]
[356461050,1742483490905,-150.0,0.0006051,120]
[356461051,1742483490915,-2208.862,0.00060761,120]
[356461052,1742483490925,-10000.0,0.0006097,30]
[356461053,1742483490934,-500.0,0.00061,120]
[356461054,1742483490944,-500.0,0.00061,120]
[356461055,1742483490954,-430.07,0.00061629,120]
[356461056,1742483490963,-169.45,0.000618,30]
[356461057,1742483490973,-500.0,0.00062,120]
[356461058,1742483490982,-5000.0,0.00062,120]
[356461059,1742483490992,-1000.0,0.00062,120]
[356461060,1742483491002,-302.0,0.00062,120]
[356461061,1742483491011,-1588.99,0.000628,90]
[356461062,1742483491021,-27874.67677717,0.00063,10]
[356461063,1742483491031,-500.0,0.00063,120]
[356461064,1742483491135,-500.0,0.00063,120]
[356461065,1742483491145,-50184.41791175,0.000634,120]
[356461066,1742483491155,-150.0,0.0006376,120]
[356461067,1742483491164,-206.31,0.00064,120]
[356461068,1742483491174,-200.0,0.00064,120]
[356461069,1742483491185,-150.0,0.00064,120]
[356461070,1742483491195,-561.04,0.00064383,120]
[356461071,1742483491204,-561.04,0.00064383,120]
[356461072,1742483491214,-561.04,0.00064383,120]
[356461073,1742483491224,-561.04,0.00064383,120]
[356461074,1742483491234,-561.04,0.00064383,120]
[356461075,1742483491244,-561.04,0.00064383,120]
[356461076,1742483491253,-561.04,0.00064383,120]
[356461077,1742483491262,-561.04,0.00064383,120]
[356461078,1742483491271,-561.04,0.00064383,120]
[356461079,1742483491281,-561.04,0.00064383,120]
[356461080,1742483491292,-561.04,0.00064383,120]
[356461081,1742483491303,-561.04,0.00064383,120]
[356461082,1742483491312,-561.04,0.00064383,120]
[356461083,1742483491322,-561.04,0.00064383,120]
[356461084,1742483491331,-561.04,0.00064383,120]
[356461085,1742483491341,-561.04,0.00064383,120]
[356461086,1742483491350,-561.04,0.00064383,120]
[356461087,1742483491359,-561.04,0.00064383,120]
[356461088,1742483491369,-561.04,0.00064383,120]
[356461089,1742483491379,-561.04,0.00064383,120]
[356461090,1742483491388,-561.04,0.00064383,120]
[356461091,1742483491398,-561.04,0.00064383,120]
[356461092,1742483491408,-561.04,0.00064383,120]
[356461093,1742483491417,-561.06370466,0.00064383,120]
[356461094,1742483491427,-260.0,0.000644,120]
[356461095,1742483491437,-1266.28838452,0.000649,120]
[356461096,1742483491446,-949.83227447,0.00064962,60]
[356461097,1742483491456,-6985.76143438,0.00064989,120]
[356461098,1742483491465,-1000.0,0.00064999,120]
[356461099,1742483491475,-300.0,0.00065,120]
[356461100,1742483491485,-2000.0,0.00065,60]
[356461101,1742483491494,-3011.7,0.00065,120]
[356461102,1742483491503,-400.0,0.00065,120]
[356461103,1742483491513,-500.0,0.00065,120]
[356461104,1742483491523,-5000.0,0.00065,120]
[356461105,1742483491532,-5140.59894987,0.000655,120]
[356461106,1742483491542,-900.0,0.00065753,120]
[356461107,1742483491552,-149189.51288278,0.00066,30]
[356461108,1742483491561,-400.0,0.00066,120]
[356461109,1742483491572,-500.0,0.00066,120]
[356461110,1742483491582,-151.92663836,0.0006627,120]
[356461111,1742483491594,-400.0,0.00067,120]
[356461112,1742483491604,-500.0,0.00067,120]
[356461113,1742483491614,-430.07,0.00067426,120]
[356461114,1742483491623,-3000.0,0.0006789,30]
[356461115,1742483491633,-270.0,0.00068,120]
[356461116,1742483491643,-5000.0,0.00068,120]
[356461117,1742483491652,-400.0,0.00069,120]
[356461118,1742483491662,-237.97,0.00069,60]
[356461119,1742483491671,-500.0,0.00069,120]
[356461120,1742483491680,-5000.0,0.00069017,120]
[356461121,1742483491690,-2073.26,0.00069023,120]
[356461122,1742483491700,-5000.0,0.00069028,120]
[356461123,1742483491709,-990.62,0.00069046,120]
[356461124,1742483491718,-5000.0,0.000691,120]
[356461125,1742483491728,-2630.11,0.00069111,120]
[356461126,1742483491737,-25000.0,0.00069143,120]
[356461127,1742483491746,-5000.0,0.00069145,120]
[356461128,1742483491755,-5000.0,0.00069156,120]
[356461129,1742483491765,-5000.0,0.00069182,120]
[356461130,1742483491774,-25000.0,0.00069221,120]
[356461131,1742483491783,-25000.0,0.00069277,120]
[356461132,1742483491793,-2500.0,0.00069296,120]
[356461133,1742483491805,-5000.0,0.00069308,120]
[356461134,1742483491823,-5000.0,0.0006933,120]
[356461135,1742483491838,-5000.0,0.00069333,120]
[356461136,1742483491856,-2657.44,0.00069341,120]
[356461137,1742483491874,-5000.0,0.00069396,120]
[356461138,1742483491889,-958.14,0.00069444,120]
[356461139,1742483491907,-25000.0,0.00069501,120]
[356461140,1742483491924,-150.0,0.0006955,120]
[356461141,1742483491942,-8598.05,0.00069578,120]
[356461142,1742483491960,-25000.0,0.00069628,120]
[356461143,1742483491976,-1650.43,0.00069628,120]
[356461144,1742483491994,-5000.0,0.00069647,120]
[356461145,1742483492009,-5000.0,0.00069669,120]
[356461146,1742483492024,-327.15,0.00069676,120]
[356461147,1742483492041,-186.25,0.00069686,120]
[356461148,1742483492056,-980.82,0.00069719,120]
[356461149,1742483492071,-3619.99,0.00069725,120]
[356461150,1742483492086,-25000.0,0.00069766,120]
[356461151,1742483492102,-3049.09,0.00069807,120]
[356461152,1742483492114,-5000.0,0.00069868,120]
[356461153,1742483492130,-169.89567973,0.000699,120]
[356461154,1742483492145,-25000.0,0.00069902,120]
[356461155,1742483492160,-5000.0,0.00069918,120]
[356461156,1742483492174,-5000.0,0.00069955,120]
[356461157,1742483492190,-5000.0,0.00069993,120]
[356461158,1742483492205,-750.0,0.00069998,101]
[356461159,1742483492220,-1000.0,0.00069999,120]
[356461160,1742483492235,-200.0,0.0007,120]
[356461161,1742483492251,-281.71894319,0.0007,120]
[356461162,1742483492266,-300.0,0.0007,120]
[356461163,1742483492282,-19256.35755567,0.0007,120]
[356461164,1742483492299,-1000.0,0.0007,60]
[356461165,1742483492314,-500.0,0.0007,120]
[356461166,1742483492330,-33571.0,0.0007,31]
[356461167,1742483492345,-390.5362378,0.0007,120]
[356461168,1742483492360,-20000.0,0.0007,90]
[356461169,1742483492375,-5000.0,0.0007,120]
[356461170,1742483492391,-2000.0,0.0007,120]
[356461171,1742483492407,-41924.10743548,0.0007015,2]
[356461172,1742483492421,-155.8,0.00070904,120]
[356461173,1742483492436,-400.0,0.00071,120]
[356461174,1742483492451,-900.0,0.00071233,120]
[356461175,1742483492466,-300.0,0.00072,120]
[356461176,1742483492480,-239.48971568,0.00072,30]
[356461177,1742483492495,-163.10841354,0.00072,120]
[356461178,1742483492509,-400.0,0.00073,120]
[356461179,1742483492523,-430.07,0.00073223,120]
[356461180,1742483492537,-300.0,0.00074,120]
[356461181,1742483492553,-5000.0,0.00074,120]
[356461182,1742483492567,-1000.0,0.00074399,120]
[356461183,1742483492582,-3000.0,0.0007444,30]
[356461184,1742483492600,-468.18788847,0.00075,30]
[356461185,1742483492614,-1000.0,0.00075,120]
[356461186,1742483492628,-400.0,0.00075,120]
[356461187,1742483492642,-5000.0,0.00075,120]
[356461188,1742483492655,-516.35566831,0.00075,120]
[356461189,1742483492670,-5000.369999,0.00075,30]
[356461190,1742483492685,-168.81111111,0.00075808,120]
[356461191,1742483492699,-3066.78,0.00076,120]
[356461192,1742483492713,-300.0,0.00076,120]
[356461193,1742483492727,-425.0,0.00076,120]
[356461194,1742483492741,-150.0,0.00076,120]
[356461195,1742483492755,-900.0,0.00076712,120]
[356461196,1742483492769,-400.0,0.00077,120]
[356461197,1742483492784,-200.0,0.00078,120]
[356461198,1742483492801,-1039.28589052,0.00078,120]
[356461199,1742483492816,-1016.39,0.00078,60]
[356461200,1742483492831,-277.57064419,0.00079,120]
[356461201,1742483492846,-400.0,0.00079,120]
[356461202,1742483492861,-430.07,0.00079019,120]
[356461203,1742483493006,-151.0,0.00079123,120]
[356461204,1742483493016,-2000.0,0.0007944,30]
[356461205,1742483493027,-200.0,0.0008,120]
[356461206,1742483493037,-1000.0,0.0008,120]
[356461207,1742483493049,-200.0,0.0008,8]
[356461208,1742483493059,-191781.04409739,0.0008,2]
[356461209,1742483493069,-3323.28172041,0.0008,2]
[356461210,1742483493079,-200.0,0.0008,120]
[356461211,1742483493090,-10000.0,0.0008,120]
[356461212,1742483493100,-1715.51292831,0.0008,120]
[356461213,1742483493110,-5066.81281203,0.0008,120]
[356461214,1742483493120,-1000.0,0.0008,27]
[356461215,1742483493130,-330.69763863,0.000801,30]
[356461216,1742483493140,-150.0,0.00080648,120]
[356461217,1742483493150,-300.0,0.000812,120]
[356461218,1742483493160,-850.0,0.00082,120]
[356461219,1742483493169,-900.0,0.00082192,120]
[356461220,1742483493179,-2000.0,0.0008245,45]
[356461221,1742483493189,-300.0,0.000834,120]
[356461222,1742483493198,-250.0,0.00084,120]
[356461223,1742483493208,-1076.11,0.00084,120]
[356461224,1742483493218,-150.0,0.000841,120]
[356461225,1742483493228,-250.0,0.000844,120]
[356461226,1742483493238,-511694.0,0.000844,30]
[356461227,1742483493248,-3000.0,0.0008445,120]
[356461228,1742483493258,-430.07,0.00084816,120]
[356461229,1742483493268,-400.0,0.00085,120]
[356461230,1742483493278,-204.0,0.00085,120]
[356461231,1742483493288,-2208.863,0.0008538,120]
[356461232,1742483493303,-1090.200476,0.00085534,120]
[356461233,1742483493314,-1000.0,0.00086687,120]
[356461234,1742483493325,-5000.0,0.000876,35]
[356461235,1742483493335,-900.0,0.00087671,120]
[356461236,1742483493345,-80000.0,0.00088,120]
[356461237,1742483493354,-500.0,0.00088,120]
[356461238,1742483493364,-150.0,0.00088851,120]
[356461239,1742483493374,-150.0,0.00089,120]
[356461240,1742483493384,-157.96491866,0.00089,120]
[356461241,1742483493394,-1500.0,0.0008978,30]
[356461242,1742483493403,-760.0,0.0008999,120]
[356461243,1742483493413,-200.0,0.0009,120]
[356461244,1742483493423,-1000.0,0.0009,120]
[356461245,1742483493433,-301.53,0.0009,2]
[356461246,1742483493442,-1000.0,0.0009,2]
[356461247,1742483493451,-222.0,0.0009,120]
[356461248,1742483493461,-894.82146907,0.0009,120]
[356461249,1742483493471,-20000.0,0.0009,90]
[356461250,1742483493480,-1022.14344244,0.0009,2]
[356461251,1742483493491,-430.07,0.00090613,120]
[356461252,1742483493500,-168.81111111,0.00091205,120]
[356461253,1742483493509,-155.8,0.00092932,120]
[356461254,1742483493519,-900.0,0.00093151,120]
[356461255,1742483493529,-200.0,0.00094,120]
[356461256,1742483493538,-10000.0,0.00094,120]
[356461257,1742483493550,-150.0,0.00094,120]
[356461258,1742483493560,-10000.0,0.000942,120]
[356461259,1742483493569,-265.84534294,0.0009429,7]
[356461260,1742483493579,-6899.83,0.00094328,120]
[356461261,1742483493595,-387.85,0.00094336,120]
[356461262,1742483493605,-2000.0,0.0009444,30]
[356461263,1742483493614,-350.0,0.00094747,120]
[356461264,1742483493624,-1000.0,0.00094999,120]
[356461265,1742483493635,-3423.7,0.00095,120]
[356461266,1742483493645,-2000.0,0.0009565,30]
[356461267,1742483493654,-293.8684904,0.00096275,120]
[356461268,1742483493664,-430.07,0.0009641,120]
[356461269,1742483493674,-3000.0,0.0009644,60]
[356461270,1742483493683,-3000.0,0.000967,60]
[356461271,1742483493692,-16547.12701212,0.000975,120]
[356461272,1742483493702,-628.78203742,0.000975,120]
[356461273,1742483493711,-2000.0,0.000979,20]
[356461274,1742483493720,-150.0,0.00098,120]
[356461275,1742483493730,-150.0,0.00098,120]
[356461276,1742483493739,-1378.06538056,0.00098,30]
[356461277,1742483493748,-17588.20276563,0.00098,120]
[356461278,1742483493758,-923.05539758,0.0009863,120]
[356461279,1742483493768,-9974.74363859,0.00099,30]
[356461280,1742483493777,-2583337.47707049,0.000998,120]
[356461281,1742483493979,-305.17318999,0.00068767,120]
[356461282,1742483493991,-195.27681001,0.00068767,120]
[356461283,1742483494000,-500.45,0.0008,120]
[356461284,1742483494010,-8786.27319,0.000998,120]
[356461285,1742483494026,-294.5,0.000998,120]
[356461286,1742483494048,-18474.41577143,0.000998,120]
[356461287,1742483494059,-475.31622944,0.000998,120]